Cogmind - Beta 15 @@@ ROGUE MODE // 2025.05.26 @ 15:39:52 Player: Bbenedict8 Result: Destroyed by 0C-DVA(j) with Overtuned Pulse Rifle Performance ------------- Evolutions (0) 0 Regions Visited (4) 800 Robots Destroyed (23) 115 Value Destroyed (599) 599 Prototype IDs (2) 40 Alien Tech Used (0) 0 Bonus (800) 800 TOTAL SCORE: 2354 Bonus ------- Registered with UFD 300 Met Optimus in HQ 500 Cogmind --------- Core Integrity 0/250 Matter 300/300 Energy 160/160 System Corruption 0% Temperature Cool (39) Movement Core (500) Ox9 Location -9/Scraptown Parts ------- > --- POWER (1) -------- Light Nuclear Core > --- PROPULSION (2) --- (None) > --- UTILITY (2) ------ Large Storage Unit > --- WEAPON (2) ------- Heavy Laser > --- INVENTORY (15) --- Ion Engine Ion Engine Small Battery (100) Medium Matter Pod (100) Structural Scanner Structural Scanner Advanced Visual Processing Unit Recoil Stabilizer A0-MCA's Component Scanner EM Pulse Gun EM Pulse Gun Medium Laser Particle Gun Peak State ------------ > --- POWER ------------ Light Nuclear Core > --- PROPULSION ------- Aluminum Leg Aluminum Leg > --- UTILITY ---------- Improved Heat Sink Large Storage Unit > --- WEAPON ----------- Heavy Laser Grenade Launcher > --- INVENTORY -------- Ion Engine Ion Engine Subdweller Monowheel Subdweller Monowheel Small Battery Medium Matter Pod Structural Scanner Structural Scanner Subdweller Optics Advanced Visual Processing Unit Recoil Stabilizer EM Pulse Gun EM Pulse Gun Medium Laser Particle Gun [Rating: 16] Favorites ----------- Power Light Nuclear Core Engine Ion Engine Power Core Light Nuclear Core Propulsion Aluminum Leg Leg Aluminum Leg Utility Large Storage Unit Device Improved Heat Sink Storage Large Storage Unit Weapon Grenade Launcher Energy Gun Heavy Laser Ballistic Cannon Light Cannon Launcher Grenade Launcher Build | -11 -10 -10 -10 -9 ------- Run | Yrd Mat Min Sub Scr Slots Evolved . | . . . . . Power . | . . . . . Propulsion . | . . . . . Utility . | . . . . . Weapon . | . . . . . Parts Attached 21 | 6 11 . 2 2 Power 3 | 1 2 . . . Engine 2 | 1 1 . . . Core 1 | . 1 . . . Reactor . | . . . . . Propulsion 4 | 2 2 . . . Treads . | . . . . . Leg 4 | 2 2 . . . Wheel . | . . . . . Hover . | . . . . . Flight . | . . . . . Utility 4 | 1 3 . . . Device 2 | . 2 . . . Storage 2 | 1 1 . . . Processor . | . . . . . Hackware . | . . . . . Protection . | . . . . . Artifact . | . . . . . Weapon 10 | 2 4 . 2 2 Energy Gun 7 | 2 3 . 1 1 Energy Cannon . | . . . . . Ballistic Gun . | . . . . . Ballistic Cannon 1 | . 1 . . . Launcher 2 | . . . 1 1 Special Weapon . | . . . . . Impact Weapon . | . . . . . Slashing Weapon . | . . . . . Piercing Weapon . | . . . . . Special Melee Weapon . | . . . . . Unidentified Prototypes . | . . . . . Parts Lost 8 | . 3 . 1 4 Power . | . . . . . Propulsion 4 | . 2 . . 2 Utility 1 | . . . . 1 Weapon 3 | . 1 . 1 1 Highest Loss Streak 4 | . 2 . 1 4 To Critical Strikes . | . . . . . Average Backups 12 | . 8 14 14 13 Power 1 | . 1 2 2 2 Propulsion . | . . . 1 1 Utility 5 | . 2 5 6 6 Weapon 4 | . 4 7 5 4 Tool/Special . | . . . . . Unused Backups 14 | . 1 . 1 12 Power 1 | . 1 . . . Propulsion 2 | . . . . 2 Utility 7 | . . . . 7 Weapon 4 | . . . 1 3 Tool/Special . | . . . . . Average Slot Usage (%) 99 | . 97 100 99 99 Engine 1 | . 4 . . . Core 12 | . 9 14 14 14 Leg 27 | . 27 28 28 27 Device 13 | . 12 14 14 13 Storage 14 | . 14 14 14 14 Energy Gun 16 | . 20 14 20 14 Ballistic Cannon 2 | . 6 14 5 . Launcher 7 | . . . 2 13 Peak Build Rating 16 | 6 12 13 14 16 Average Rating 13 | 4 10 12 13 15 On Entrance 8 | . 6 12 13 13 Naked Turns . | . . . . . Heaviest Build 33 | 14 30 30 30 33 Greatest Support 20 | 20 20 20 20 20 Greatest Overweight (x) 2 | . 2 1 1 1 Average Overweight (x) . | . . 1 1 1 Largest Inventory Capacity 15 | 8 15 15 15 15 Average Capacity 14 | 6 14 15 15 15 Most Carried 15 | 2 13 15 15 15 Average Carried 12 | . 8 14 14 13 Final Capacity 15 | 8 15 15 15 15 Final Carried 15 | 2 13 15 15 13 Class Distribution -------------------- 79% | Scavenger-Mutant 20% | Mutant Dominant Class ---------------- Mutant | -10/Materials Scavenger-Mutant | -10/Mines Scavenger-Mutant | -10/Subcaves Scavenger-Mutant | -9/Scraptown Resources | -11 -10 -10 -10 -9 ----------- Run | Yrd Mat Min Sub Scr Matter Collected 607 | 48 401 . 82 76 Remotely . | . . . . . Salvage Created 683 | . 481 . 66 136 Parts 43 | . 29 . 7 7 Haulers Intercepted . | . . . . . Recyclers Shooed . | . . . . . Parts Field Recycled . | . . . . . Retrieved Matter . | . . . . . Parts Self-Destructed 7 | . . . 7 . Prevented . | . . . . . Kills | -11 -10 -10 -10 -9 ------- Run | Yrd Mat Min Sub Scr Combat Hostiles Destroyed 19 | . 14 . 2 3 Guns 12 | . 11 . 1 . Cannons 2 | . 1 . 1 . AOE 5 | . 2 . . 3 Classes Destroyed 7 | . 4 . 1 2 Worker 2 | . 2 . . . Watcher 2 | . 2 . . . Swarmer 6 | . 6 . . . Grunt 8 | . 8 . . . Subdweller 2 | . . . 2 . Federalist 1 | . . . . 1 Scrapper 2 | . . . . 2 Best Kill Streak 3 | . 3 . 1 3 Combat Bots Only 3 | . 3 . 1 3 Max Kills in Single Turn 2 | . 2 . 1 1 Gunslinging 1 | . 1 . . . Exploded 2 | . 2 . . 1 Melee . | . . . . . Uniques/NPCs Destroyed . | . . . . . Combat | -11 -10 -10 -10 -9 -------- Run | Yrd Mat Min Sub Scr Hostile Shots Fired 118 | . 75 . 16 27 Missed 38 | . 27 . 2 9 Hits 80 | . 48 . 14 18 Melee 1 | . . . . 1 Projectile 79 | . 48 . 14 17 Damage Taken 1272 | . 539 38 454 241 Core 251 | . 94 . 98 59 Absorbed by Shields . | . . . . . Core Remaining (%) 100 | 100 . . . . Volleys Fired 77 | . 58 . 15 4 Largest 2 | . 2 . 2 1 Hottest 105 | . 90 . 105 30 Shots Fired 137 | . 114 . 19 4 Gun 105 | . 97 . 8 . Cannon 23 | . 17 . 6 . Launcher 9 | . . . 5 4 Special . | . . . . . Kinetic 23 | . 17 . 6 . Thermal 89 | . 81 . 8 . Explosive 9 | . . . 5 4 Electromagnetic 16 | . 16 . . . Robot Hit Streak 7 | . 7 . 6 6 Robot Miss Streak 4 | . 4 . 1 1 Penetration Max . | . . . . . Secondary Targets 1 | . 1 . . . Max Gunslinging Chain 1 | . 1 . . . Shots Hit Robots 74 | . 60 . 12 2 Core Hits 44 | . 28 . 4 12 Critical Kills . | . . . . . Critical Parts Destroyed . | . . . . . Critical Strikes 2 | . 2 . . . Burn 2 | . 2 . . . Melee Attacks . | . . . . . Impact . | . . . . . Slashing . | . . . . . Piercing . | . . . . . Sneak Attacks . | . . . . . Combat Hostiles . | . . . . . Follow-up Attacks . | . . . . . Damage Inflicted 1441 | . 847 . 195 399 Guns 700 | . 615 . 85 . Cannons 270 | . 160 . 110 . Explosions 471 | . 72 . . 399 Melee . | . . . . . Ramming . | . . . . . Kinetic 270 | . 160 . 110 . Thermal 650 | . 565 . 85 . Explosive 399 | . . . . 399 Electromagnetic 122 | . 122 . . . Impact . | . . . . . Slashing . | . . . . . Piercing . | . . . . . Highest Corruption . | . . . . . Average Corruption . | . . . . . Corruption Purged . | . . . . . Corruption Blocked . | . . . . . Overload Shots . | . . . . . Overflow Damage . | . . . . . Projectiles . | . . . . . Explosions . | . . . . . Melee . | . . . . . Knockbacks 2 | . 2 . . . Impact . | . . . . . Kinetic 2 | . 2 . . . Secondary . | . . . . . Self-Inflicted Damage 49 | . 34 . 15 . Shots 2 | . 1 . 1 . Rammed . | . . . . . Targets Rammed . | . . . . . Kicked . | . . . . . Crushed . | . . . . . Highest Temperature 234 | . 234 . . 27 Average Temperature 80 | . 81 . . 27 Received Heat Transfer 321 | . 216 . 45 60 Siege Activations . | . . . . . Martial Activations . | . . . . . Shielding Activations . | . . . . . Robots Disrupted . | . . . . . Combat Hostiles . | . . . . . Robots Corrupted . | . . . . . Combat Hostiles . | . . . . . Parts Fried . | . . . . . Impact Corruptions . | . . . . . Robots Melted . | . . . . . Combat Hostiles . | . . . . . Parts Melted 4 | . 3 . . 1 Heat Transferred 1686 | . 1488 . 198 . Parts Sabotaged . | . . . . . Parts Stolen . | . . . . . Parts Stripped . | . . . . . Power Chain Reactions 1 | . 1 . . . Alert | -11 -10 -10 -10 -9 ------- Run | Yrd Mat Min Sub Scr Maximum Alert Level . | . . . . . Low Security (%) 100 | 100 100 100 . . Level 1 . | . . . . . Level 2 . | . . . . . Level 3 . | . . . . . Level 4 . | . . . . . Level 5 . | . . . . . High Security . | . . . . . Max Security . | . . . . . Peak Influence 108 | . 108 . . . Initial . | . . . . . Average 29 | . 32 . . . Influence Increases 438 | . 438 . . . Destroy 0b10 Robot/C 280 | . 280 . . . Destroy 0b10 Robot/NC 20 | . 20 . . . Destroy Leader 64 | . 64 . . . Successful Hack 38 | . 38 . . . Disable Machine 15 | . 15 . . . Destroy Structure 6 | . 6 . . . Lose Combat Pursuer 15 | . 15 . . . Influence Decreases 438 | . 438 . . . Time Decay 408 | . 408 . . . Lost Part 30 | . 30 . . . Squads Dispatched 3 | . 3 . . . Investigation 1 | . 1 . . . Extermination . | . . . . . Reinforcement 2 | . 2 . . . Assault . | . . . . . Garrison . | . . . . . Intercept . | . . . . . Searches Triggered . | . . . . . Construction Impeded . | . . . . . Haulers Reinforced . | . . . . . Active Scanning Responses . | . . . . . Cargo Convoy Interrupts . | . . . . . Stealth | -11 -10 -10 -10 -9 --------- Run | Yrd Mat Min Sub Scr Distress Signals 3 | . 3 . . . Communications Jammed . | . . . . . Distress Signals . | . . . . . Times Spotted 38 | . 26 1 2 9 Peak Tracking Total 7 | . 4 1 2 7 Tactical Retreats 1 | . 1 . . . Traps | -11 -10 -10 -10 -9 ------- Run | Yrd Mat Min Sub Scr Traps Triggered 3 | . 1 . 2 . Indirectly . | . . . . . Trap Hack Attempts . | . . . . . Triggered . | . . . . . Disarmed . | . . . . . Reprogrammed . | . . . . . Reused . | . . . . . Traps Extracted . | . . . . . Installed . | . . . . . Triggered . | . . . . . Machines | -11 -10 -10 -10 -9 ---------- Run | Yrd Mat Min Sub Scr Machines Disabled 2 | . 1 . . 1 Max in Single Turn 1 | . 1 . . 1 Machines Repaired . | . . . . . Machines Dismantled . | . . . . . Machines Sabotaged . | . . . . . Overloaded Fab Kills . | . . . . . Hacking | -11 -10 -10 -10 -9 --------- Run | Yrd Mat Min Sub Scr Machines Accessed 9 | . 7 1 . 1 Terminals 6 | . 6 . . . Fabricators . | . . . . . Repair Stations . | . . . . . Recycling Units 1 | . 1 . . . Scanalyzers . | . . . . . Garrison Access . | . . . . . Total Hacks 20 | . 18 1 . 1 Successful 13 | . 11 1 . 1 Failed 7 | . 7 . . . Catastrophic 2 | . 2 . . . Database Lockouts . | . . . . . Manual 4 | . 4 . . . Terminals 17 | . 17 . . . Fabricators . | . . . . . Repair Stations . | . . . . . Recycling Units 1 | . 1 . . . Scanalyzers . | . . . . . Garrison Access . | . . . . . Terminal Hacks 11 | . 9 1 . 1 Record 2 | . 1 . . 1 Robot Analysis 1 | . 1 . . . Prototype ID Bank 1 | . 1 . . . Open Door 1 | . . 1 . . Emergency Access Points 1 | . 1 . . . Locate Traps 1 | . 1 . . . Dispatch Records 1 | . 1 . . . Maintenance Status 1 | . 1 . . . Hauler Manifests 1 | . 1 . . . Zone Layout 1 | . 1 . . . Fabricator Hacks . | . . . . . Repair Station Hacks . | . . . . . Recycling Unit Hacks . | . . . . . Scanalyzer . | . . . . . Garrison Access Hacks . | . . . . . Unauthorized Hacks 1 | . 1 . . . Terminals 1 | . 1 . . . Disrupt 1 | . 1 . . . Fabricators . | . . . . . Repair Stations . | . . . . . Recycling Units . | . . . . . Scanalyzers . | . . . . . Garrison Access . | . . . . . Data Cores Recovered . | . . . . . Used . | . . . . . Hacking Detections 4 | . 4 . . . Full Trace Events 1 | . 1 . . . Feedback Events . | . . . . . Feedback Blocked . | . . . . . Robot Schematics Acquired . | . . . . . Robots Built . | . . . . . Authchips . | . . . . . Time . | . . . . . Total Robot Build Rating . | . . . . . Part Schematics Acquired . | . . . . . Parts Built . | . . . . . Authchips . | . . . . . Time . | . . . . . Total Part Build Rating . | . . . . . Parts Repaired . | . . . . . Time . | . . . . . Parts Recycled . | . . . . . Recycled Matter . | . . . . . Retrieved Matter . | . . . . . Retrieved Components . | . . . . . Parts Scanalyzed . | . . . . . Part Schematics Acquired . | . . . . . Parts Damaged . | . . . . . Bothacking | -11 -10 -10 -10 -9 ------------ Run | Yrd Mat Min Sub Scr Used RIF Installer . | . . . . . Robots Hacked . | . . . . . Non-combat . | . . . . . Combat . | . . . . . Robot Hacks Applied . | . . . . . Relay Couplers Released . | . . . . . Fabnet Peak Effective % . | . . . . . Robots Rewired . | . . . . . Allies Hacked . | . . . . . Hacks Repelled . | . . . . . Allies | -11 -10 -10 -10 -9 -------- Run | Yrd Mat Min Sub Scr Total Allies . | . . . . . Largest Group . | . . . . . Highest-Rated Group . | . . . . . Highest-Rated Ally . | . . . . . Total Orders . | . . . . . Ally Attacks . | . . . . . Total Damage . | . . . . . Kills . | . . . . . Allies Corrupted . | . . . . . Allies Melted 1 | . . . . 1 Intel | -11 -10 -10 -10 -9 ------- Run | Yrd Mat Min Sub Scr Active Infowar (turns) 301 | . 301 . . . Structural 301 | . 301 . . . Robot Analysis Total 1 | . 1 . . . Derelict Logs Recovered 2 | . . . . 2 Drone Launches . | . . . . . Drone Recoveries . | . . . . . Exploration | -11 -10 -10 -10 -9 ------------- Run | Yrd Mat Min Sub Scr Turns Passed 4669 | 64 1301 70 692 2542 Spaces Moved 2355 | 45 612 35 332 1331 Core 1 | 1 . . . . Treads . | . . . . . Legs 2354 | 44 612 35 332 1331 Wheels . | . . . . . Hover . | . . . . . Flight . | . . . . . Fastest Speed 50 | 50 120 190 190 190 Average Speed 184 | 118 174 190 190 190 Slowest Speed 260 | 120 260 190 190 190 Overloaded Moves . | . . . . . Propulsion Burnouts . | . . . . . Robots Hopped . | . . . . . Potential Cave-ins . | . . . . . Cave-ins Triggered . | . . . . . Exploration Rate (%) 43 | 4 94 8 23 87 Regions Visited 4 Branch Regions 3 Pre-discovered Areas . | . . . . . Known Exits Taken . | . . . . . Unknown Exits Taken 4 | 1 1 1 1 . Scrap Searched 8 | . . . . 8 Spaces Dug . | . . . . . Terrain Destroyed 59 | . 2 . 27 30 Melee . | . . . . . Projectile . | . . . . . AOE 59 | . 2 . 27 30 Terrain Rammed . | . . . . . Walls Destroyed . | . . . . . Machines Disabled . | . . . . . Actions | -11 -10 -10 -10 -9 --------- Run | Yrd Mat Min Sub Scr Total 2534 | 52 726 39 374 1343 Wait 48 | . 26 3 19 . Move 2351 | 44 611 34 331 1331 Hop . | . . . . . Pick Up 22 | 2 14 2 3 1 Fast Attach 10 | 6 3 . . 1 Attach 2 | . 1 . 1 . Detach . | . . . . . Swap 12 | . 8 . 3 1 Drop 12 | . 5 . 2 5 Fire 77 | . 58 . 15 4 Melee . | . . . . . Ram . | . . . . . Kick . | . . . . . Crush . | . . . . . Escape Stasis . | . . . . . Rewire . | . . . . . Trap . | . . . . . Miscellaneous . | . . . . . Route ------- -11/Scrapyard -10/Materials (discovered 6 exits: [*Mat x3] / *Min x2 / [*Sub]) -10/Mines -10/Subcaves -9/Scraptown (discovered 2 exits: [*Fac x2]) History --------- Turn | Location | Event 13 | -11/Scrapyard | Discovered new exit (range 16) 65 | -11/Scrapyard | Entered Materials 210 | -10/Materials | Discovered new exit (range 3) 301 | -10/Materials | Build established: Mutant 407 | -10/Materials | Discovered new exit (range 9) 1100 | -10/Materials | Discovered new exit (range 5) 1159 | -10/Materials | Discovered new exit (range 5) 1239 | -10/Materials | Discovered new exit (range 14) 1257 | -10/Materials | Build established: Scavenger-Mutant 1319 | -10/Materials | Discovered new exit (range 16) 1366 | -10/Materials | Entered Mines 1381 | -10/Mines | Met a Derelict who couldn't figure out how to use a Trap Extractor 1419 | -10/Mines | Discovered new exit (range 8) 1436 | -10/Mines | Entered Subcaves 1437 | -10/Subcaves | Approached by a straggling Scientist 1601 | -10/Subcaves | A swath of the cavern ceiling suddenly collapsed 1715 | -10/Subcaves | Core integrity fell below 50% 2116 | -10/Subcaves | Scientist uncovered a shortcut to Scraptown 2128 | -10/Subcaves | Entered Scraptown 2603 | -9/Scraptown | Visited Comm Corps 2724 | -9/Scraptown | Visited Cave Peace 2753 | -9/Scraptown | Visited CPS Storage 3222 | -9/Scraptown | Visited Bundlers 3319 | -9/Scraptown | Visited Cyclists 3359 | -9/Scraptown | Visited Assassins FH 3501 | -9/Scraptown | Scanned Subdweller tech in exchange for log data 3507 | -9/Scraptown | Learned Factory terminal intel 3509 | -9/Scraptown | Learned Factory non-interactive machine intel 3531 | -9/Scraptown | Discovered new exit (range 11) 3725 | -9/Scraptown | Visited UFD Registry 3725 | -9/Scraptown | Registered with UFD as "Deathbrain" 3799 | -9/Scraptown | Visited Curators Association 3870 | -9/Scraptown | Visited Scrapoid Pod Storage 3904 | -9/Scraptown | Visited Science Guys 3928 | -9/Scraptown | Visited Scrap Suit Storage 3982 | -9/Scraptown | Visited A0-MCA Data Center 3993 | -9/Scraptown | Given a B- rating by A0-MCA 4003 | -9/Scraptown | Found A0-MCA's Component Scanner 4051 | -9/Scraptown | Visited Research Penetration Think Tank 4100 | -9/Scraptown | Visited Derelict Rescue Squad 4556 | -9/Scraptown | Met Optimus 4556 | -9/Scraptown | Accepted into 0bPrime 4637 | -9/Scraptown | Civil war broke out across Scraptown 4663 | -9/Scraptown | Core integrity fell below 20% 4663 | -9/Scraptown | Discovered new exit (range 8) 4670 | -9/Scraptown | Destroyed by 0C-DVA(j) with Overtuned Pulse Rifle Last Messages --------------- 04662_ Bolt penetrates S4-3J1(j). 04663_ EXIT=FOUND 04663_ Lgt. Deuterium Engine melted. 04663_ S4-3J1(j) destroyed. 04664_ Acquired 10 matter. 04665_ Penetrated by Bolt. 04665_ ZI-L4Q(g) destroyed. 04665_ RI-0RS(x) suffers critical hit (Burn). 04666_ Acquired 10 matter. 04666_ RI-0RS(x) destroyed. 04667_ C-Scrubber disabled. 04667_ Penetrated by Bolt. 04667_ Aluminum Leg destroyed. 04668_ Acquired 5 matter. 04669_ Aluminum Leg destroyed. 04669_ 8L-TXV(j) destroyed. 04669_ Imp. Heat Sink destroyed. 04669_ Grenade Launcher destroyed. 04670_ Bolt penetrates XN-SVW(p). 04670_ XN-SVW(p) destroyed. Map ----- +----------------------------------------------------+ | | | | | | | | | | | | | | | | | ?????????????????????????????????????????????????? | | ?????????????????????????????????????????????????? | | ?????????????????????????????????????????????????? | | ?????????????????????????????????????????????????? | | ?????????????????????????????????????????????????? | | ?????????????????????????????????????????????????? | | ?????????????????????????????????????????????????? | | ?????????????????????????????????????????????????? | | ?????????????????????????????????????????????????? | | ?????????????????????????????????????????????????? | | ???????????????????????????????#####?????????????? | | ?????????????????????????????? #?????????????? | | ????????????????????????????? #?????????????? | | ?????????????????????####??? = ##????????????? | | ????????????????????## ##?#![%=< #????????????? | | ??????????"|##!!"#### |!##[!=!j=*!##????????????? | | ????????? *![x!=!=!h=% #????????????? | | ?????????? g !=@[%=!%[%[!#?????????????? | | ?????????????????#### ![###!% #????????????? | | ????????????????????## ##??????#####????????????? | | ?????????????????????# #????????????????????????? | | ????????????########## #????????????????????????? | | ???????????#"""""""""# #????????????????????????? | | ???????????#"""""""""# #????????????????????????? | | #########??#"""""""""# #? ??????????????????????? | | """"""""#??#"""""""""# #? ??????????????????????? | | "" """""#??#""" """# #? ??????????????????????? | | " ""#??#""" """# #? #???#?????????????????? | | " ""#??#"!" """# #? #?? ??????????????????? | | ""#??#""" """"# #? # ???????????????????? | | " ""#??#""" """# ## # ????????????????????? | | "#??# "# ## ?????????????????????? | | #### ####??##### ##### ## #?????????????????????? | | #### ########### ##### ## ##?????####???????????? | | """" """"""""""" """"" " "#???"" ????????????? | | ! "#?? "?????????????? | | "#?? "?????????????? | | "#?" ""????????????? | | "##" " ???????????? | | " ""??????????????? | | """""""""""""""""""""" "##" ""??????????????? | | """""""""""""""""""""" "#?" " ?????????????? | +----------------------------------------------------+ Best States ------------- Heat Dissipation 39 Energy Generation 14 Energy Capacity 250 Matter Stores 300 Matter Capacity 300 Sight Range 16 Terrain Scan Density 10 Evasion (%) 55 Item Schematics ----------------- None Robot Schematics ------------------ None Fabricated ------------ Nothing Repaired ---------- Nothing Alien Tech Used ----------------- None Achievements -------------- None Challenges ------------ None Game ------ Seed KineticLinkedBlaster Manual? 0 Play Time 00:27:46 Cumulative 48.7 hours Start 2025.05.26 @ 15:08:00 End 2025.05.26 @ 15:39:52 Sessions 1 Manual Loads 0 Difficulty Rogue Special Mode None Game No. 47 Rogue 45 Adventurer 2 Explorer 0 Win Type - Total 0 Types 0/0/0/0/0/0/0/0/0/0 Lore% 44 Gallery% 34 Achievement% 34 Wizard Run 0 Options --------- Layout 1 ASCII 0 Keyboard 0 Movement Numpad Keybinds 0 Fullscreen 1 Font 24/Smallcaps Map View 50x35 Zoom Use 6% Tactical HUD 1 Map Filters NONE Filters NONE Steam 1 RUN: 362055d5-8795-4a22-a4f6-9a2ba5dc3cbe